Cogmind - Beta 13 @@@ ROGUE MODE // 2024.04.06 @ 19:06:00 Player: Fractal Result: Destroyed by G-34 Mercenary with Small Laser Performance ------------- Evolutions (1) 500 Regions Visited (3) 600 Robots Destroyed (47) 235 Value Destroyed (1103) 1103 Prototype IDs (3) 60 Alien Tech Used (0) 0 Bonus (0) 0 TOTAL SCORE: 2498 Bonus ------- None Cogmind --------- Core Integrity 0/400 Matter 196/300 Energy 75/100 System Corruption 1% Temperature Cool (22) Movement Core (450) Ox8 Location -9/Materials Parts ------- > --- POWER (1) -------- (None) > --- PROPULSION (2) --- (None) > --- UTILITY (4) ------ Large Storage Unit Signal Interpreter Targeting Computer > --- WEAPON (2) ------- Particle Gun Autogun > --- INVENTORY (15) --- Ion Engine Weight Redist. System Sensor Array Signal Interpreter Terrain Scan Processor Hacking Suite Improved EM Shotgun Improved EM Shotgun Light Assault Rifle Datajack Maul Peak State ------------ > --- POWER ------------ Light Nuclear Core > --- PROPULSION ------- Aluminum Leg Aluminum Leg > --- UTILITY ---------- Large Storage Unit Signal Interpreter Targeting Computer Shield Generator > --- WEAPON ----------- Improved EM Shotgun Particle Gun > --- INVENTORY -------- Ion Engine Aluminum Leg Aluminum Leg Weight Redist. System Sensor Array Signal Interpreter Hacking Suite Improved EM Shotgun Small Laser Light Assault Rifle Autogun EMP Blaster Grenade Launcher Datajack [Rating: 17] Favorites ----------- Power Ion Engine Engine Ion Engine Power Core Light Nuclear Core Propulsion Aluminum Leg Treads Improved Treads Leg Aluminum Leg Wheel Armored Wheel Utility Large Storage Unit Device Shield Generator Storage Large Storage Unit Processor Visual Processing Unit Weapon Assault Rifle Energy Gun Particle Gun Ballistic Gun Assault Rifle Ballistic Cannon Light Cannon Launcher EMP Blaster Special Weapon Mining Laser Impact Weapon Maul Build | -11 -10 -10 -9 ------- Run | Yrd Mat Min Mat Slots Evolved 2 | . . . 2 Power . | . . . . Propulsion . | . . . . Utility 2 | . . . 2 Weapon . | . . . . Parts Attached 48 | 7 17 . 24 Power 4 | 2 1 . 1 Engine 3 | 2 1 . . Core 1 | . . . 1 Reactor . | . . . . Propulsion 14 | 2 7 . 5 Treads 3 | . 3 . . Leg 9 | 2 2 . 5 Wheel 2 | . 2 . . Hover . | . . . . Flight . | . . . . Utility 8 | 1 2 . 5 Device 2 | . . . 2 Storage 3 | 1 1 . 1 Processor 3 | . 1 . 2 Hackware . | . . . . Protection . | . . . . Artifact . | . . . . Weapon 22 | 2 7 . 13 Energy Gun 5 | . 2 . 3 Energy Cannon . | . . . . Ballistic Gun 7 | 2 1 . 4 Ballistic Cannon 1 | . 1 . . Launcher 4 | . . . 4 Special Weapon 4 | . 3 . 1 Impact Weapon 1 | . . . 1 Slashing Weapon . | . . . . Piercing Weapon . | . . . . Special Melee Weapon . | . . . . Unidentified Prototypes 1 | . . . 1 Parts Lost 16 | . 4 . 12 Power 3 | . 1 . 2 Propulsion 5 | . 1 . 4 Utility 2 | . 1 . 1 Weapon 6 | . 1 . 5 Highest Loss Streak 7 | . 3 . 7 To Critical Strikes . | . . . . Average Slot Usage (%) 87 | . 87 71 90 Engine 8 | . 12 14 . Core 3 | . . . 8 Treads 5 | . 9 . . Leg 13 | . 11 . 17 Wheel 2 | . 2 14 1 Device 3 | . . . 9 Storage 12 | . 14 14 11 Processor 12 | . 9 . 18 Energy Gun 6 | . 2 14 10 Ballistic Gun 10 | . 12 14 8 Ballistic Cannon 6 | . 10 . . Naked Turns . | . . . . Heaviest Build 34 | 14 31 28 34 Greatest Support 46 | 20 46 12 20 Greatest Overweight (x) 8 | . 6 2 8 Average Overweight (x) . | . . 2 1 Largest Inventory Capacity 15 | 8 15 15 15 Average Capacity 13 | 6 12 15 14 Most Carried 15 | 2 15 11 15 Average Carried 10 | . 10 11 11 Final Capacity 15 | 8 15 15 15 Final Carried 11 | 2 11 11 11 Class Distribution -------------------- 71% | Mutant 28% | Scavenger-Mutant Dominant Class ---------------- Mutant | -10/Materials Mutant | -10/Mines Scavenger-Mutant | -9/Materials Resources | -11 -10 -10 -9 ----------- Run | Yrd Mat Min Mat Matter Collected 1093 | 248 414 25 406 Remotely . | . . . . Salvage Created 1221 | . 415 . 806 Parts 91 | . 36 . 55 Haulers Intercepted 1 | . . . 1 Recyclers Shooed 4 | . 1 . 3 Parts Field Recycled . | . . . . Retrieved Matter . | . . . . Parts Self-Destructed . | . . . . Prevented . | . . . . Kills | -11 -10 -10 -9 ------- Run | Yrd Mat Min Mat Combat Hostiles Destroyed 31 | . 12 . 19 Melee 1 | . . . 1 Guns 15 | . 5 . 10 Cannons 7 | . 7 . . AOE 6 | . . . 6 Classes Destroyed 9 | . 4 . 5 Worker 1 | . . . 1 Builder 4 | . . . 4 Hauler 1 | . . . 1 Recycler 1 | . . . 1 Operator 3 | . 3 . . Watcher 6 | . 3 . 3 Swarmer 10 | . 3 . 7 Grunt 17 | . 9 . 8 Sentry 4 | . . . 4 Best Kill Streak 12 | . 3 . 12 Combat Bots Only 7 | . 3 . 7 Max Kills in Single Turn 3 | . 1 . 3 Gunslinging . | . . . . Exploded 1 | . . . 1 Melee 1 | . . . 1 Uniques/NPCs Destroyed . | . . . . Combat | -11 -10 -10 -9 -------- Run | Yrd Mat Min Mat Hostile Shots Fired 257 | . 72 7 178 Missed 60 | . 15 1 44 Damage Taken 2599 | . 1027 46 1526 Core 560 | . 147 9 404 Absorbed by Shields 186 | . . . 186 Core Remaining (%) 68 | 100 . 37 . Volleys Fired 126 | . 71 . 55 Largest 2 | . 2 . 2 Hottest 135 | . 135 . 100 Shots Fired 210 | . 134 1 75 Gun 151 | . 88 1 62 Cannon 36 | . 36 . . Launcher 11 | . . . 11 Special 12 | . 10 . 2 Kinetic 157 | . 117 1 39 Thermal 40 | . 17 . 23 Explosive 4 | . . . 4 Electromagnetic 9 | . . . 9 Robot Hit Streak 10 | . 10 . 9 Robot Miss Streak 5 | . 4 . 5 Penetration Max . | . . . . Secondary Targets . | . . . . Shots Hit Robots 121 | . 69 . 52 Core Hits 63 | . 24 . 39 Critical Kills 1 | . . . 1 Critical Parts Destroyed 2 | . . . 2 Critical Strikes 4 | . . . 4 Smash 4 | . . . 4 Melee Attacks 16 | . . . 16 Impact 16 | . . . 16 Slashing . | . . . . Piercing . | . . . . Sneak Attacks . | . . . . Combat Hostiles . | . . . . Follow-up Attacks . | . . . . Damage Inflicted 2767 | . 1021 . 1746 Guns 1171 | . 597 . 574 Cannons 415 | . 415 . . Explosions 773 | . . . 773 Melee 375 | . . . 375 Ramming 9 | . 9 . . Kinetic 1276 | . 949 . 327 Thermal 414 | . 63 . 351 Explosive 471 | . . . 471 Electromagnetic 222 | . . . 222 Impact 375 | . . . 375 Slashing . | . . . . Piercing . | . . . . Highest Corruption 12 | . 12 12 1 Average Corruption 3 | . 7 12 1 Corruption Purged . | . . . . Corruption Blocked . | . . . . Effects 29 | . 12 9 8 Message Errors 9 | . 4 1 4 Matter Fused 5 | . 2 2 1 Heat Flow Errors 1 | . 1 . . Data Loss (minor) 6 | . 2 2 2 Data Loss (major) 4 | . 2 1 1 Misfires 1 | . . 1 . Alerts 3 | . 1 2 . Overload Shots . | . . . . Overflow Damage 188 | . 16 . 172 Projectiles 16 | . 16 . . Explosions 47 | . . . 47 Melee 125 | . . . 125 Knockbacks 8 | . 8 . . Impact 1 | . 1 . . Kinetic 6 | . 6 . . Secondary 1 | . 1 . . Self-Inflicted Damage 18 | . . . 18 Shots 2 | . . . 2 Rammed 2 | . 2 . . Targets Rammed 3 | . 3 . . Kicked 1 | . 1 . . Crushed . | . . . . Highest Temperature 210 | . 210 . 99 Average Temperature 35 | . 49 . 23 Received Heat Transfer 952 | . 327 . 625 Siege Activations . | . . . . Robots Corrupted . | . . . . Combat Hostiles . | . . . . Parts Fried 2 | . . . 2 Impact Corruptions 5 | . 1 . 4 Robots Melted . | . . . . Combat Hostiles . | . . . . Parts Melted 2 | . . . 2 Heat Transferred 953 | . 148 . 805 Parts Sabotaged . | . . . . Parts Stolen . | . . . . Parts Stripped . | . . . . Power Chain Reactions 2 | . . . 2 Alert | -11 -10 -10 -9 ------- Run | Yrd Mat Min Mat Peak Influence 303 | . 202 30 303 Initial 11 | . . . 11 Average 57 | . 53 3 76 Maximum Alert Level 1 | . 1 . 1 Low Security (%) 98 | 100 99 100 97 Level 1 1 | . . . 2 Level 2 . | . . . . Level 3 . | . . . . Level 4 . | . . . . Level 5 . | . . . . High Security . | . . . . Max Security . | . . . . Squads Dispatched 6 | . 5 . 1 Investigation 3 | . 3 . . Extermination . | . . . . Reinforcement 3 | . 2 . 1 Assault . | . . . . Garrison . | . . . . Intercept . | . . . . Searches Triggered . | . . . . Construction Impeded . | . . . . Haulers Reinforced . | . . . . Active Scanning Responses . | . . . . Cargo Convoy Interrupts . | . . . . Stealth | -11 -10 -10 -9 --------- Run | Yrd Mat Min Mat Distress Signals 3 | . 1 . 2 Communications Jammed . | . . . . Distress Signals . | . . . . Times Spotted 55 | . 24 5 26 Peak Tracking Total 6 | . 3 5 6 Tactical Retreats 6 | . 1 1 4 Traps | -11 -10 -10 -9 ------- Run | Yrd Mat Min Mat Traps Triggered 3 | . 3 . . Indirectly . | . . . . Trap Hack Attempts . | . . . . Triggered . | . . . . Disarmed . | . . . . Reprogrammed . | . . . . Reused . | . . . . Traps Extracted . | . . . . Installed . | . . . . Triggered . | . . . . Machines | -11 -10 -10 -9 ---------- Run | Yrd Mat Min Mat Machines Disabled 2 | . . . 2 Max in Single Turn 2 | . . . 2 Machines Repaired . | . . . . Machines Dismantled . | . . . . Machines Sabotaged . | . . . . Overloaded Fab Kills . | . . . . Hacking | -11 -10 -10 -9 --------- Run | Yrd Mat Min Mat Machines Accessed 10 | . 7 . 3 Terminals 8 | . 6 . 2 Fabricators . | . . . . Repair Stations . | . . . . Recycling Units 1 | . 1 . . Scanalyzers 1 | . . . 1 Garrison Access . | . . . . Total Hacks 33 | . 21 . 12 Successful 15 | . 8 . 7 Failed 18 | . 13 . 5 Catastrophic 1 | . . . 1 Database Lockouts . | . . . . Manual 17 | . 13 . 4 Terminals 26 | . 20 . 6 Fabricators . | . . . . Repair Stations . | . . . . Recycling Units 1 | . 1 . . Scanalyzers 6 | . . . 6 Garrison Access . | . . . . Terminal Hacks 10 | . 7 . 3 Prototype ID Bank 1 | . 1 . . Branch Access Points 2 | . 1 . 1 Terminal Index 2 | . 1 . 1 Locate Traps 1 | . . . 1 Hauler Manifests 2 | . 2 . . Registered Components 1 | . 1 . . Zone Layout 1 | . 1 . . Fabricator Hacks . | . . . . Repair Station Hacks . | . . . . Recycling Unit Hacks 1 | . 1 . . Report Inventory 1 | . 1 . . Scanalyzer 4 | . . . 4 Insert Component 2 | . . . 2 Analyze 2 | . . . 2 Garrison Access Hacks . | . . . . Unauthorized Hacks . | . . . . Terminals . | . . . . Fabricators . | . . . . Repair Stations . | . . . . Recycling Units . | . . . . Scanalyzers . | . . . . Garrison Access . | . . . . Data Cores Recovered 1 | . 1 . . Used 1 | . 1 . . Hacking Detections 5 | . 3 . 2 Full Trace Events 2 | . 2 . . Feedback Events . | . . . . Feedback Blocked . | . . . . Robot Schematics Acquired . | . . . . Robots Built . | . . . . Authchips . | . . . . Time . | . . . . Total Robot Build Rating . | . . . . Part Schematics Acquired 2 | . . . 2 Parts Built . | . . . . Authchips . | . . . . Time . | . . . . Total Part Build Rating . | . . . . Parts Repaired . | . . . . Time . | . . . . Parts Recycled . | . . . . Recycled Matter . | . . . . Retrieved Matter . | . . . . Retrieved Components . | . . . . Parts Scanalyzed 2 | . . . 2 Part Schematics Acquired 2 | . . . 2 Parts Damaged . | . . . . Bothacking | -11 -10 -10 -9 ------------ Run | Yrd Mat Min Mat Used RIF Installer . | . . . . Robots Hacked . | . . . . Non-combat . | . . . . Combat . | . . . . Robot Hacks Applied . | . . . . Relay Couplers Released . | . . . . Fabnet Peak Effective % . | . . . . Robots Rewired . | . . . . Allies Hacked . | . . . . Hacks Repelled . | . . . . Allies | -11 -10 -10 -9 -------- Run | Yrd Mat Min Mat Total Allies . | . . . . Largest Group . | . . . . Highest-Rated Group . | . . . . Highest-Rated Ally . | . . . . Total Orders . | . . . . Ally Attacks . | . . . . Total Damage . | . . . . Kills . | . . . . Allies Corrupted . | . . . . Allies Melted . | . . . . Intel | -11 -10 -10 -9 ------- Run | Yrd Mat Min Mat Robot Analysis Total . | . . . . Derelict Logs Recovered 1 | . . 1 . Drone Launches . | . . . . Drone Recoveries . | . . . . Exploration | -11 -10 -10 -9 ------------- Run | Yrd Mat Min Mat Turns Passed 3632 | 72 2090 211 1259 Spaces Moved 1832 | 54 1113 137 528 Core 15 | 5 6 . 4 Treads 428 | . 428 . . Legs 940 | 49 449 . 442 Wheels 449 | . 230 137 82 Hover . | . . . . Flight . | . . . . Fastest Speed 50 | 50 105 120 120 Average Speed 153 | 113 146 120 181 Slowest Speed 450 | 120 350 120 450 Overloaded Moves . | . . . . Propulsion Burnouts . | . . . . Robots Hopped . | . . . . Cave-ins Triggered 1 | . 1 . . Exploration Rate (%) 43 | 4 98 28 43 Regions Visited 3 Branch Regions 1 Pre-discovered Areas . | . . . . Known Exits Taken 1 | . 1 . . Unknown Exits Taken 2 | 1 . 1 . Scrap Searched . | . . . . Spaces Dug 12 | . 11 . 1 Terrain Destroyed 64 | . 11 . 53 Melee 1 | . . . 1 Projectile 12 | . 11 . 1 AOE 51 | . . . 51 Terrain Rammed . | . . . . Walls Destroyed . | . . . . Machines Disabled . | . . . . Actions | -11 -10 -10 -9 --------- Run | Yrd Mat Min Mat Total 2385 | 61 1419 183 722 Wait 308 | . 188 47 73 Move 1829 | 53 1112 136 528 Hop . | . . . . Pick Up 33 | 1 14 . 18 Fast Attach 17 | 6 5 . 6 Attach 14 | . 4 . 10 Detach 7 | . 4 . 3 Swap 17 | 1 8 . 8 Drop 15 | . 10 . 5 Fire 126 | . 71 . 55 Melee 16 | . . . 16 Ram . | . . . . Kick 1 | . 1 . . Crush 2 | . 2 . . Escape Stasis . | . . . . Rewire . | . . . . Trap . | . . . . Miscellaneous . | . . . . Route ------- -11/Scrapyard -10/Materials (discovered 5 exits: *Mat x3 / *Min x2) -10/Mines -9/Materials (discovered 1 exit: *Min) History --------- Turn | Location | Event 3 | -11/Scrapyard | Discovered new exit (range 15) 73 | -11/Scrapyard | Entered Materials 310 | -10/Materials | Build established: Mutant 415 | -10/Materials | Discovered new exit (range 12) 718 | -10/Materials | Discovered new exit (range 15) 1067 | -10/Materials | Discovered new exit (range 12) 1175 | -10/Materials | Identified exit to Mines 1239 | -10/Materials | Discovered new exit (range 15) 1431 | -10/Materials | Discovered new exit (range 5) 1921 | -10/Materials | Crushed by falling debris 1921 | -10/Materials | Core integrity fell below 50% 1921 | -10/Materials | System corruption reached 10% 1952 | -10/Materials | Lost 3 parts (1n1u1w) 2163 | -10/Materials | Entered Mines 2170 | -10/Mines | Assembled infested the area 2175 | -10/Mines | Assisted by a Guerilla fighting off Assembled 2369 | -10/Mines | Discovered new exit (range 3) 2374 | -10/Mines | Entered Materials 2374 | -9/Materials | Evolved 2 slots: Utility x2 2375 | -9/Materials | Identified exit to Mines 2819 | -9/Materials | Build established: Scavenger-Mutant 3442 | -9/Materials | Core integrity fell below 50% 3596 | -9/Materials | Core integrity fell below 20% 3633 | -9/Materials | Destroyed by G-34 Mercenary with Small Laser Last Messages --------------- U-05 Engineer destroyed. U-05 Engineer lays Concrete. U-05 Engineer destroyed. S-10 Pest destroyed. K-01 Serf destroyed. Aluminum Leg destroyed. K-01 Serf collects debris. Chain reaction triggered in Corrupted Lgt. Ion Engine. EMP Blaster destroyed. G-47 Trooper destroyed. U-05 Engineer lays Concrete. R-06 Scavenger collects Flight Unit. U-05 Engineer lays Concrete. R-06 Scavenger collects Corrupted Lgt. Ion Engine. U-05 Engineer lays Concrete. R-06 Scavenger collects Corrupted Lgt. Assault Rifle. U-05 Engineer lays Concrete. Map ----- +----------------------------------------------------+ | ??????????????????????????????????? | | #######???????????????????????????????????? | | " #?????????????????????????????????????????? | | " #?????????????????????????????????????????? | | " +?????????????????????????????????????????? | | #?????????????????????????????????????????? | | #?????????????????????????????????????????? | | #### #?????????????????????????????????????????? | | ?####+#####??????????????????????????????????????? | | ?# #??????????????????????????????????????? | | ## """ #??????????????????????????????????????? | | + """ #############??????????????????????????? | | ## """ + #?###########??????????????? | | ?# ###########%### #??????????????? | | ?# #?????????# ##; ##? ???????????? | | ?# #?????????#% ; ;# ???????????? | | ?# "T" #?????????# %; ;; "???????????? | | ?# """ #?????????# ; ;; "???????????? | | ###########?????????# u ; ;; ""??????????? | | #??????????# ; ;; ?????????? | | / #??????????# ; ?????????? | | #?????????## ;;; ???????? | | #?????????# * +##??????? | | """"" #?????????# % !%=%=##?????? | | """"" #?????????# ! = * g*%[=% ??? | | """"" #?????????# @ % [[ u =!#??????? | | #?????????# ###### [[ r%[ #??????? | | #######+#######????#######?????? #??????? | | # ?????????????????? #??????? | | # ??????????????????? !! #??????? | | # ?#???????????????? !! #??????? | | # """ ????????????????? #??????? | | # """ #?????????????????? #??????? | | + """ #?????????????????? ##??????? | | # #??????????????????? #???????? | | +##### # """ #??????????????????? !#???????? | | # # """ #????????????????????!!!##???????? | | # # """ #????????????????????####????????? | | # + #????????????????????????????????? | | # #########????????????????????????????????? | | ! # # #?????????????????????????????????? | | # + #?????????????????????????????????? | | # # ""#?????????????????????????????????? | | + # T"#?????????????????????????????????? | | #### ""#?????????????????????????????????? | | ######??# #?????????????????????????????????? | | ????????########?????????????????????????????????? | | ?????????????????????????????????????????????????? | | ?????????????????????????????????????????????????? | | ?????????????????????????????????????????????????? | +----------------------------------------------------+ Best States ------------- Heat Dissipation 28 Energy Generation 14 Energy Capacity 250 Matter Stores 300 Matter Capacity 300 Sight Range 18 Terrain Scan Density 10 Evasion (%) 55 Targeting Accuracy 5 Recoil Reduction 2 Item Schematics ----------------- Lrg. Storage Unit | -9/Materials | Scanalyzed Hacking Suite | -9/Materials | Scanalyzed Robot Schematics ------------------ None Fabricated ------------ Nothing Alien Tech Used ----------------- None Achievements -------------- None Challenges ------------ None Game ------ Seed ZhirovOmegaProtomatter Manual? 0 Play Time 00:41:54 Cumulative 18.5 hours Start 2024.04.06 @ 18:22:51 End 2024.04.06 @ 19:06:00 Sessions 1 Manual Loads 0 Difficulty Rogue Special Mode None Game No. 25 Rogue 25 Adventurer 0 Explorer 0 Win Type - Total 0 Types 0/0/0/0/0/0/0/0/0 Lore% 16 Gallery% 20 Achievement% 15 Wizard Run 0 Options --------- Layout 1 ASCII 0 Keyboard 1 Movement Numpad Keybinds 0 Fullscreen 1 Font 48/Terminus Map View 50x35 Zoom Use 0% Tactical HUD 0 Map Filters NONE Filters NONE Steam 1 RUN: 77747b3d-2e44-4de4-88e2-ffc1727891f8